bitfinex/quotes_ETHUSD_20260305
["timestamp","ask_amount","ask_price","bid_price","bid_amount"]
[1772674393669,1.6764762,2125.0,2124.2,4.70743723]
[1772674394177,0.5,2124.9,2124.2,4.70743723]
[1772674394896,0.5,2124.9,2124.1,3.66896865]
[1772674395084,0.5,2124.7,2123.9,0.0011]
[1772674395486,0.5,2124.7,2124.4,0.0011]
[1772674395687,1.67669208,2124.6,2124.4,0.0011]
[1772674396763,0.5,2124.5,2124.1,0.0011]
[1772674397966,0.49945,2124.3,2124.1,0.0011]
[1772674399697,0.49945,2124.3,2123.9,0.0011]
[1772674400795,1.67636366,2124.2,2123.9,0.0011]
[1772674401607,0.49945,2124.1,2123.9,0.0011]
[1772674401971,0.49945,2124.1,2123.8,0.0011]
[1772674402473,1.17691366,2124.2,2123.8,0.0011]
[1772674402870,3.352475,2124.6,2123.8,0.0033]
[1772674402871,2.2119237,2124.5,2123.8,0.0033]
[1772674403096,3.88754858,2124.6,2123.9,0.0022]
[1772674403295,1.17669226,2124.6,2123.9,0.0022]
[1772674403470,2.49067367,2124.7,2123.9,0.0022]
[1772674403794,1.314,2124.7,2123.9,0.0022]
[1772674403994,2.49065019,2124.7,2123.9,0.0022]
[1772674405100,0.001,2124.8,2123.9,0.0022]
[1772674405395,1.17758548,2124.8,2123.9,0.0022]
[1772674406099,0.4989,2124.7,2123.9,0.0022]
[1772674406277,0.4989,2124.7,2123.8,0.0011]
[1772674406602,0.4989,2124.5,2123.8,0.0011]
[1772674407386,0.4989,2124.3,2123.8,0.0011]
[1772674408104,0.4989,2124.3,2124.1,0.0011]
[1772674409209,1.17680286,2124.4,2124.1,0.0011]
[1772674409508,5.20711144,2124.5,2124.1,0.0011]
[1772674409692,2.79055367,2124.4,2124.1,0.0011]
[1772674410097,0.4989,2124.3,2124.1,0.0011]
[1772674410491,0.4989,2124.3,2123.9,0.0011]
[1772674412485,0.4989,2124.3,2122.5,0.065536]
[1772674412486,0.49835,2124.1,2123.1,1.17748705]
[1772674412700,0.49835,2124.1,2123.0,3.79624772]
[1772674412701,0.49835,2123.9,2123.0,3.79624772]
[1772674412895,0.49835,2123.7,2122.9,0.1790384]
[1772674413092,3.28915604,2123.6,2122.9,1.35666554]
[1772674413411,0.49835,2123.6,2122.9,1.35666554]
[1772674413710,5.91592466,2124.2,2122.9,1.35996554]
[1772674413711,0.49835,2123.9,2122.9,1.35996554]
[1772674413913,0.49835,2123.8,2122.9,1.35996554]
[1772674414509,0.49835,2123.6,2122.9,1.35667126]
[1772674414724,0.49835,2123.6,2122.9,1.35666701]
[1772674414911,0.49835,2123.6,2122.9,0.1790384]
[1772674415304,0.49835,2123.6,2122.9,1.35666427]
[1772674415507,1.17717989,2123.8,2123.0,0.0033]
[1772674416909,0.49835,2123.8,2123.0,0.0033]
[1772674417723,0.49835,2123.8,2122.9,1.35666427]
[1772674417905,0.49835,2123.8,2122.9,0.1790384]
[1772674418289,0.49835,2123.8,2122.9,1.35666994]
[1772674418488,0.49835,2123.8,2122.9,0.1790384]
[1772674418788,0.49835,2123.8,2122.7,1.17770331]
[1772674419234,0.49835,2123.6,2122.6,0.0033]
[1772674419891,0.49835,2123.6,2123.2,0.0011]
[1772674421019,0.49835,2123.7,2123.2,0.0011]
[1772674421209,0.49835,2123.7,2122.2,0.0033]
[1772674421210,0.49835,2123.5,2122.2,0.0033]
[1772674421918,0.49835,2123.2,2122.0,3.76892223]
[1772674422223,0.49835,2123.2,2121.9,1.17814426]
[1772674422422,0.49835,2123.2,2121.9,1.18144426]
[1772674422598,0.49835,2123.2,2121.9,1.17814426]
[1772674423012,0.49835,2123.2,2121.9,1.18144426]
[1772674423216,0.49835,2123.0,2121.9,0.0033]
[1772674424423,0.49835,2123.0,2121.7,1.18160041]
[1772674424626,0.49835,2122.9,2121.7,1.18160041]
[1772674424792,0.49835,2122.9,2121.7,0.0033]
[1772674424994,0.49835,2122.8,2121.6,1.1783321]
[1772674425420,0.49835,2122.6,2121.5,0.0033]
[1772674427520,0.49835,2122.4,2121.5,0.0033]
[1772674428332,2.56711489,2123.0,2121.5,0.0033]
[1772674428627,2.56711489,2123.0,2121.3,2.29046705]
[1772674428628,0.49835,2122.6,2121.3,1.1785226]
[1772674429312,0.49835,2122.6,2121.4,0.0033]
[1772674429739,1.67615796,2122.6,2121.4,0.0033]
[1772674430095,0.49835,2122.5,2121.6,0.0033]
[1772674430298,0.49835,2122.5,2121.5,1.111]
[1772674430828,0.49835,2122.5,2121.3,0.0033]
[1772674431601,1.67623646,2122.5,2121.4,0.0033]
[1772674432021,0.49835,2122.5,2121.6,0.0033]
[1772674432201,1.67620942,2122.5,2121.6,0.0033]
[1772674432407,0.49835,2122.4,2121.6,0.0033]
[1772674433533,4.71074366,2122.9,2121.7,0.0033]
[1772674433534,0.49835,2122.7,2121.7,0.0033]
[1772674435128,0.49835,2122.7,2121.6,1.17835595]
[1772674435831,1.17780081,2122.6,2121.6,1.17835595]
[1772674436028,4.7111905,2122.8,2121.7,0.0033]
[1772674436029,0.49835,2122.8,2121.7,0.0033]
[1772674436232,0.49835,2122.7,2121.6,1.17835595]
[1772674436532,0.49835,2122.5,2121.6,1.17835595]
[1772674436904,0.49835,2122.5,2121.7,0.0033]
[1772674437922,1.17791179,2122.4,2121.7,0.0033]
[1772674438430,1.67624402,2122.5,2121.7,0.0033]
[1772674440223,1.323,2123.1,2121.7,0.0033]
[1772674440423,0.49835,2122.9,2121.9,0.0033]
[1772674440830,4.71031559,2123.2,2121.9,0.0033]
[1772674440831,1.6758413,2123.2,2121.9,0.0033]
[1772674441034,0.49835,2123.2,2121.9,0.0033]
[1772674441626,0.49835,2123.5,2122.0,0.0033]
[1772674441821,0.49835,2123.5,2122.2,0.0033]
[1772674442112,0.4208091,2123.7,2122.4,0.0033]
[1772674442315,0.4208091,2123.7,2122.6,0.0033]
[1772674444142,1e-08,2123.7,2122.7,1.108]
[1772674444349,1e-08,2123.7,2122.8,1.17768984]
[1772674444546,0.001,2123.5,2122.9,1.108]
[1772674446052,1e-08,2123.7,2122.9,1.108]
[1772674446221,1e-08,2123.7,2123.0,1.17757889]
[1772674446623,0.50000001,2123.7,2123.0,1.17757889]
[1772674446827,0.50000001,2123.7,2122.8,1.1776492]
[1772674447420,0.50000001,2123.7,2122.8,2.2846492]
[1772674448251,0.50000001,2123.7,2122.8,1.1776492]
[1772674448424,0.5,2123.5,2122.8,1.107]
[1772674449239,1e-08,2123.7,2122.8,1.107]
[1772674450445,1e-08,2123.7,2122.9,1.17763436]
[1772674451546,1e-08,2123.7,2123.0,1.107]
[1772674452152,0.001,2124.1,2123.0,1.107]
[1772674452642,0.001,2124.1,2123.1,1.17752343]
[1772674454550,0.501,2124.1,2123.1,1.17752343]
[1772674456425,0.001,2124.1,2123.1,1.17752343]
[1772674456643,0.001,2123.9,2123.1,1.17752343]
[1772674456846,0.001,2124.5,2123.2,0.065536]
[1772674458023,0.501,2124.5,2123.2,0.065536]
[1772674458249,0.501,2124.5,2123.3,1.106]
[1772674458826,0.501,2124.5,2123.4,1.17735706]
[1772674459319,0.5,2124.4,2123.4,1.17735706]
[1772674459528,0.5,2124.4,2123.5,1.106]
[1772674461156,0.5,2124.4,2123.6,1.17724618]
[1772674461456,1.67681037,2124.4,2123.6,1.17724618]
[1772674461637,0.5,2124.4,2123.6,1.17724618]
[1772674461834,0.501,2124.5,2123.6,1.17724618]
[1772674464132,0.5,2124.4,2123.6,1.17724618]
[1772674465954,0.001,2124.5,2123.6,1.17724618]
[1772674467343,0.001,2124.5,2123.7,0.065536]
[1772674468264,0.001,2124.5,2123.8,1.17713532]
[1772674468938,0.001,2124.3,2123.8,1.17713532]
[1772674469140,0.48080639,2125.1,2123.9,0.49216152]
[1772674470246,0.48080639,2125.1,2124.1,0.49216152]
[1772674470458,0.48080639,2125.1,2124.3,0.49216152]
[1772674471136,1.65722713,2125.1,2124.3,0.49216152]
[1772674471466,0.48080639,2125.0,2124.3,0.49216152]
[1772674472765,0.48080639,2125.0,2124.4,1.17680286]
[1772674472943,0.48080639,2124.9,2124.3,1.17681728]
[1772674473140,0.48080639,2124.9,2124.4,1.106]
[1772674473741,0.48080639,2124.9,2124.2,1.17687806]
[1772674474062,0.48080639,2124.9,2124.2,2.28287806]
[1772674474263,0.48080639,2124.9,2124.2,1.17687806]
[1772674474451,0.48080639,2124.9,2124.2,2.28287806]
[1772674474965,1.17658132,2124.8,2124.2,2.28287806]
[1772674475159,0.48080639,2124.7,2124.2,2.28287806]
[1772674475873,0.48080639,2124.7,2124.2,1.106]
[1772674477069,0.48080639,2124.5,2123.7,1.66929684]
[1772674477375,0.48080639,2124.5,2123.9,1.107]
[1772674477773,0.48080639,2124.5,2123.8,4.70840045]
[1772674477963,0.48080639,2124.5,2123.9,1.107]
[1772674478850,0.48080639,2124.5,2123.8,5.81540045]
[1772674479476,0.48080639,2124.6,2123.9,0.49216152]
[1772674479967,0.48080639,2124.9,2123.9,0.49216152]
[1772674480671,1.65733273,2124.9,2123.9,0.49216152]
[1772674480878,0.48080639,2124.9,2123.9,0.49216152]
[1772674481374,1.65733486,2124.9,2124.1,0.0011]
[1772674481774,0.001,2124.8,2124.1,0.0011]
[1772674482551,0.48180639,2124.8,2124.1,0.0011]
[1772674482778,0.48180639,2124.8,2123.9,0.0011]
[1772674483280,0.48180639,2124.8,2123.9,1.17817779]
[1772674483474,0.48080639,2124.6,2123.9,0.0011]
[1772674485575,0.48080639,2124.4,2123.9,0.0011]
[1772674487677,0.48080639,2124.2,2123.9,0.0011]
[1772674489981,0.48050813,2124.4,2123.9,0.0011]
[1772674491078,0.48050813,2124.4,2123.6,0.0011]
[1772674491885,0.48050813,2124.2,2123.6,0.0011]
[1772674493858,0.48050813,2124.2,2123.8,0.0011]
[1772674494078,1.65846629,2124.2,2123.8,0.0011]
[1772674495488,0.48050813,2124.1,2123.8,0.0011]
[1772674496263,0.48050813,2123.9,2123.8,0.0011]
[1772674496790,1.65845547,2124.2,2123.8,0.0011]
[1772674497163,0.48150813,2124.2,2123.8,0.0011]
[1772674497363,0.001,2124.2,2123.8,0.0011]
[1772674497563,1.17792649,2124.2,2123.8,0.0011]
[1772674498186,0.001,2124.2,2123.8,0.0011]
[1772674501322,0.48050813,2124.6,2123.8,0.45327129]
[1772674501593,1.65721237,2124.6,2123.8,0.45327129]
[1772674501797,0.48050813,2124.5,2123.8,0.45327129]
[1772674502299,0.48050813,2124.5,2123.8,1.55927129]
[1772674502506,1.17680286,2124.4,2123.8,1.55927129]
[1772674502670,0.48050813,2124.3,2123.8,0.0011]
[1772674504370,0.48050813,2124.3,2123.8,1.1782212]
[1772674504581,1.65737501,2124.3,2123.8,0.0011]
[1772674504968,1.65714483,2124.7,2123.8,0.45327129]
[1772674505167,0.48050813,2124.6,2123.8,0.45327129]
[1772674505396,0.001,2124.8,2123.8,0.45327129]
[1772674505599,0.001,2124.8,2123.9,0.45217129]
[1772674505783,0.001,2124.8,2124.3,0.45217129]
[1772674506695,0.001,2124.8,2124.4,1.62897415]
[1772674507279,0.001,2124.6,2124.4,1.106]
[1772674508981,0.001,2124.6,2124.5,1.17674746]
[1772674509378,0.001,2124.8,2124.5,1.17674746]
[1772674509583,1.65682034,2125.3,2124.5,1.17674746]
[1772674511006,0.48050813,2125.0,2124.4,1.106]
[1772674512284,0.48050813,2125.0,2124.0,1.17812448]
[1772674512285,0.48050813,2125.0,2124.0,0.0011]
[1772674512891,0.48050813,2124.9,2124.0,0.0011]
[1772674513100,0.48050813,2124.7,2124.0,0.0011]
[1772674514899,0.46630813,2124.7,2124.0,0.0011]
[1772674515088,0.48050813,2124.5,2124.0,0.0011]
[1772674515907,0.48050813,2124.5,2123.8,0.0011]
[1772674516098,0.47246813,2124.5,2123.8,0.0011]
[1772674517192,0.48050813,2124.3,2123.8,0.0011]
[1772674519106,4.70721144,2124.5,2123.8,0.0011]
[1772674519107,1.17677714,2124.5,2123.8,0.0011]
[1772674519407,0.49259276,2124.4,2124.0,0.0011]
[1772674519586,0.001,2124.3,2124.0,0.0011]
[1772674520314,0.49359276,2124.3,2124.0,0.0011]
[1772674520979,0.48885276,2124.3,2124.0,0.0011]
[1772674522207,0.49259276,2124.6,2124.0,0.0011]
[1772674522383,1.17668221,2124.7,2124.0,0.0011]
[1772674522588,1.66927497,2124.7,2124.0,0.0011]
[1772674522790,0.49259276,2124.6,2124.0,0.0011]
[1772674523489,1.66934022,2124.5,2124.0,0.0011]
[1772674523690,1.66572022,2124.5,2124.0,0.0011]
[1772674524416,0.49259276,2124.4,2124.0,0.0011]
[1772674524711,0.48796276,2124.4,2124.0,0.0011]
[1772674525615,1.66945101,2124.3,2124.0,0.0011]
[1772674529336,1.17674746,2124.5,2124.0,0.0011]
[1772674529494,4.70657716,2124.7,2124.0,0.0011]
[1772674529495,1.17685825,2124.3,2124.0,0.0011]
[1772674530033,0.46623635,2124.2,2123.8,0.0011]
[1772674530808,1.17685825,2124.3,2123.8,0.45305516]
[1772674531102,1.17678018,2124.5,2124.0,0.0011]
[1772674531519,0.001,2124.3,2124.0,0.0011]
[1772674533921,0.46723635,2124.3,2124.0,0.0011]
[1772674534710,1.64315001,2124.2,2124.0,0.0011]
[1772674537341,1.17672942,2124.6,2124.0,0.45305516]
[1772674537543,1.64286122,2124.8,2124.0,0.45305516]
[1772674538730,0.46623635,2124.7,2124.0,0.45305516]
[1772674539458,0.46623635,2124.9,2124.1,1.62892422]
[1772674539987,0.46623635,2124.9,2124.0,1.17808056]
[1772674540613,0.46623635,2124.9,2124.0,1.63003572]
[1772674541855,1.64281767,2124.8,2124.0,1.63003572]
[1772674542155,0.46623635,2124.7,2124.0,1.63003572]
[1772674543050,0.46623635,2124.7,2124.2,0.0011]
[1772674543351,0.46723635,2124.7,2124.2,0.0011]
[1772674543951,1.17669208,2124.6,2124.2,0.0011]
[1772674544156,0.46623635,2124.5,2124.2,0.0011]
[1772674544464,1.17669208,2124.6,2124.2,0.0011]
[1772674545264,1.64292843,2124.6,2124.2,0.0011]
[1772674548159,0.46623635,2124.5,2124.2,0.0011]
[1772674548867,1.17680286,2124.4,2124.2,0.0011]
[1772674549968,0.46558723,2124.3,2124.2,0.0011]
[1772674550171,0.46558723,2124.3,2124.0,0.0011]
[1772674551277,1.17691366,2124.2,2124.0,0.0011]
[1772674551960,5.17238382,2124.6,2124.0,0.48563356]
[1772674553888,1.17767709,2124.7,2124.1,0.48453356]
[1772674554700,0.46558723,2124.6,2124.0,0.0011]
[1772674555195,0.46558723,2124.4,2123.8,0.0011]
[1772674555372,0.46558723,2124.3,2123.8,0.0011]
[1772674555558,0.46558723,2124.1,2123.8,0.0011]
[1772674555762,0.46558723,2123.9,2123.8,0.0011]
[1772674555959,2.05411378,2123.9,2123.8,0.0011]
[1772674557181,1.64266713,2123.9,2123.8,0.0011]
[1772674557385,1.17685825,2124.3,2123.8,0.0011]
[1772674557702,3.20341946,2124.2,2123.8,0.0011]
[1772674557903,3.66900669,2124.1,2123.8,0.0011]
[1772674558067,1.17702448,2124.0,2123.8,0.0011]
[1772674560201,0.001,2124.4,2123.8,0.0011]
[1772674560202,1.64344548,2124.4,2123.8,0.0011]
[1772674560400,7.90914684,2124.3,2123.8,0.0011]
[1772674560574,0.87653191,2124.2,2123.8,0.0011]
[1772674560773,0.46558723,2124.2,2123.8,0.0011]
[1772674561907,4.70751068,2124.3,2123.8,0.0011]
[1772674562199,1.17685825,2124.3,2123.8,0.48563356]
[1772674562393,4.70822701,2124.4,2123.8,0.48563356]
[1772674562710,0.41094309,2124.3,2123.8,0.48563356]
[1772674562875,0.46558723,2124.3,2123.8,0.0011]
[1772674564596,1.17691366,2124.2,2123.8,0.0011]
[1772674566607,1.17691366,2124.2,2124.0,0.0011]
[1772674568118,1.64250089,2124.2,2124.0,0.0011]
[1772674568691,0.46658723,2124.4,2124.0,0.0011]
[1772674568892,0.41074391,2124.3,2124.0,0.0011]
[1772674569089,0.001,2124.4,2124.0,0.0011]
[1772674569390,0.46658723,2124.4,2124.0,0.0011]
[1772674569792,0.46558723,2124.2,2124.0,0.0011]
[1772674570690,1.17696906,2124.1,2124.0,0.0011]
[1772674571021,1.64255629,2124.1,2123.8,0.0011]
[1772674574225,1.17696906,2124.1,2123.8,0.0011]
[1772674574396,1.17695814,2124.2,2123.8,0.0011]
[1772674574909,1.64254537,2124.2,2123.8,0.0011]
[1772674575225,0.46558723,2124.1,2123.8,0.0011]
[1772674576415,1.17690982,2124.3,2123.8,0.0011]
[1772674576998,0.46558723,2124.3,2123.8,0.0011]
[1772674577795,0.8773507,2124.2,2123.8,0.0011]
[1772674578001,4.70833821,2124.4,2123.8,0.0011]
[1772674578002,5.17392544,2124.4,2123.8,0.0011]
[1772674578201,3.20793671,2124.3,2124.0,0.0011]
[1772674578511,0.001,2124.1,2124.0,0.0011]
[1772674580320,0.47428289,2124.1,2123.8,0.0011]
[1772674580527,0.47328289,2124.0,2123.8,0.0011]
[1772674580953,0.47328289,2124.0,2123.6,0.0011]
[1772674580954,0.47328289,2123.8,2123.6,0.0011]
[1772674581100,0.47328289,2123.5,2122.8,0.0011]
[1772674581300,0.47328289,2123.3,2122.8,0.0011]
[1772674581517,3.67830751,2123.2,2122.8,0.0011]
[1772674582238,0.88498038,2123.2,2122.8,0.0011]
[1772674583235,2.06244835,2123.2,2122.8,0.0011]
[1772674583401,2.06101181,2123.2,2122.8,0.0011]
[1772674583834,4.84847934,2123.2,2122.8,0.0011]
[1772674584039,2.06101181,2123.2,2122.8,0.0011]
[1772674584330,1.65075086,2123.2,2122.8,0.0011]
[1772674585941,0.47328289,2123.5,2123.1,0.0078]
[1772674586106,0.47328289,2123.3,2122.8,0.0011]
[1772674586920,1.331,2123.2,2122.8,0.0011]
[1772674587115,0.47714904,2123.1,2122.8,0.0011]
[1772674587314,1.65472793,2123.0,2122.8,0.0011]
[1772674587506,4.70938953,2123.5,2122.8,0.45340546]
[1772674587507,1.17739944,2123.4,2122.8,0.45340546]
[1772674588231,1.65454848,2123.4,2122.8,0.0011]
[1772674590655,1.65454848,2123.4,2123.0,0.0011]
[1772674592656,1.17739944,2123.4,2123.0,0.0011]
[1772674593042,4.70929542,2123.5,2123.0,0.0011]
[1772674593439,1.80914904,2123.8,2123.0,0.45340546]
[1772674593630,4.70882293,2123.7,2123.0,0.45340546]
[1772674593828,1.80914904,2123.8,2123.0,0.45340546]
[1772674594028,1.17702448,2124.0,2123.1,0.45230546]
[1772674594226,0.47814904,2124.1,2123.1,0.45230546]
[1772674594227,1.17797083,2124.1,2123.1,0.45230546]
[1772674595062,1.17797083,2124.1,2123.3,0.45230546]
[1772674595830,0.001,2124.1,2123.3,0.45230546]
[1772674596264,1.17688581,2124.3,2123.3,0.45230546]
[1772674597463,0.001,2124.4,2123.5,0.45230546]
[1772674599457,0.001,2124.4,2123.7,0.45230546]
[1772674600047,0.001,2124.7,2123.7,0.45230546]
[1772674600954,0.47814904,2124.7,2123.7,0.45230546]
[1772674601159,0.47814904,2124.7,2123.8,1.54130546]
[1772674601770,0.47714904,2124.5,2123.8,1.54130546]
[1772674601939,0.47714904,2124.5,2123.8,2.71843741]
[1772674602134,1.17669208,2124.6,2123.9,0.45230546]
[1772674602451,0.47714904,2124.5,2123.8,1.62943741]
[1772674603064,0.47814904,2124.5,2123.8,1.62943741]
[1772674603469,0.001,2124.5,2123.9,0.45230546]
[1772674603966,0.47814904,2124.5,2123.4,0.45230546]
[1772674604174,0.47814904,2124.5,2123.5,1.54030546]
[1772674604665,0.47814904,2124.5,2123.3,1.54030546]
[1772674605669,0.47714904,2124.2,2123.1,0.0011]
[1772674605976,0.47714904,2124.0,2123.1,0.0011]
[1772674608070,0.47714904,2123.8,2123.1,0.0011]
[1772674608390,1.1770799,2123.9,2123.1,0.45340546]
[1772674608590,0.47865625,2123.8,2123.1,0.0011]
[1772674610370,1.17719075,2123.7,2123.1,0.0011]
[1772674612252,0.47865625,2123.6,2123.1,0.0011]
[1772674612680,1.17730162,2123.5,2123.1,0.0011]
[1772674613169,4.70886368,2123.7,2123.1,0.0011]
[1772674615177,4.70886368,2123.7,2123.3,0.0011]
[1772674615774,1.1770799,2123.9,2123.3,0.0011]
[1772674617080,0.47965625,2124.2,2123.3,0.0011]
[1772674617482,0.41009669,2124.1,2123.3,0.0011]
[1772674617656,0.47865625,2124.0,2123.3,0.0011]
[1772674619554,1.17699306,2124.1,2123.3,0.47886397]
[1772674619957,1.17793423,2124.2,2123.3,0.47886397]
[1772674620273,0.001,2124.2,2123.3,0.47886397]
[1772674621185,0.001,2124.5,2123.5,0.47776397]
[1772674621372,0.001,2124.5,2123.7,0.47776397]
[1772674621573,0.001,2124.5,2124.1,3.13717704]
[1772674621776,0.001,2124.5,2124.2,0.47776397]
[1772674622286,1.1763048,2125.3,2124.2,0.47776397]
[1772674622492,1.17636171,2125.2,2124.2,0.47776397]
[1772674622873,0.47865625,2125.1,2124.2,0.47776397]
[1772674623591,0.47865625,2125.1,2124.2,1.56276397]
[1772674624091,0.47865625,2124.9,2124.1,3.83635343]
[1772674624491,0.47865625,2124.9,2124.1,2.65941307]
[1772674624693,0.47965625,2124.7,2123.9,1.65480119]
[1772674625083,0.47965625,2124.7,2123.9,0.47776397]
[1772674625394,0.47965625,2124.7,2123.8,1.084]
[1772674625777,0.47965625,2124.7,2123.8,2.26112653]
[1772674626170,1.65534833,2124.6,2123.8,2.26112653]
[1772674626768,1.65534833,2124.6,2124.4,0.0011]
[1772674626971,0.001,2124.5,2124.4,0.0011]
[1772674628181,0.001,2124.5,2124.1,0.0011]
[1772674628182,0.47965625,2124.5,2124.1,0.0011]
[1772674628574,0.001,2124.5,2124.1,0.0011]
[1772674629182,1.1777537,2124.5,2124.1,0.0011]
[1772674629382,0.001,2124.5,2124.1,0.0011]
[1772674629583,1.17777769,2124.5,2124.1,0.0011]
[1772674630403,0.001,2124.5,2124.1,0.0011]
[1772674631595,0.47965625,2124.5,2124.1,0.0011]
[1772674631918,0.47965625,2124.5,2123.3,0.47886397]
[1772674631919,0.47865625,2124.3,2123.3,1.0851]
[1772674632681,0.47865625,2124.1,2123.4,0.0011]
[1772674633297,0.47865625,2124.1,2123.5,0.0011]
[1772674634820,1.65568073,2124.0,2123.3,0.0011]
[1772674635019,1.65568073,2124.0,2123.4,0.0011]
[1772674636116,0.47865625,2123.9,2123.5,0.0011]
[1772674636317,0.47865625,2123.9,2123.3,0.0011]
[1772674636913,1.65579157,2123.8,2123.3,0.0011]
[1772674637115,1.65579157,2123.8,2123.4,0.0011]
[1772674637652,1.17713532,2123.8,2123.4,0.0011]
[1772674637827,4.70820542,2124.0,2123.5,0.0011]
[1772674638125,5.18686167,2124.0,2123.4,0.0011]
[1772674639098,5.18686167,2124.0,2123.6,0.0011]
[1772674639511,1.65568073,2124.0,2123.6,0.0011]
[1772674640303,1.65568073,2124.0,2123.7,0.0011]
[1772674641801,0.47434522,2123.9,2123.6,0.0011]
[1772674643500,1.65148054,2123.8,2123.6,0.0011]
[1772674644315,4.70819386,2124.0,2123.6,0.0011]
[1772674644614,5.18253908,2124.0,2123.6,0.0011]
[1772674644931,0.47434522,2123.9,2123.6,0.0011]
[1772674645522,4.70819386,2124.0,2123.6,0.0011]
[1772674646618,0.47434522,2123.9,2123.6,0.0011]
[1772674646820,0.47434522,2123.9,2123.4,0.0011]
[1772674647616,0.45599565,2123.6,2123.4,0.0011]
[1772674648930,1.17719075,2123.7,2123.4,0.0011]
[1772674649813,4.708763,2123.8,2123.4,0.0011]
[1772674649814,5.16475865,2123.8,2123.4,0.0011]
[1772674650011,0.45599565,2123.7,2123.4,0.0011]
[1772674650602,0.45599565,2123.7,2123.6,0.0011]
[1772674650820,0.45699565,2123.7,2123.6,0.0011]
[1772674651430,0.001,2123.7,2123.6,0.0011]
[1772674651624,0.45599565,2124.2,2123.6,0.0011]
[1772674651825,1.1770799,2123.9,2123.6,0.0011]
[1772674652029,1.17680286,2124.4,2123.6,0.47935583]
[1772674652237,2.35493818,2124.4,2123.6,0.47935583]
[1772674653809,0.45599565,2124.1,2123.6,0.0011]
[1772674656035,1.17702448,2124.0,2123.6,0.0011]
[1772674657664,1.17700353,2124.1,2123.6,0.47935583]
[1772674657822,1.17683643,2124.4,2123.6,0.47935583]
[1772674658019,1.17778794,2124.5,2123.8,0.04597]
[1772674658220,1.85592326,2124.5,2123.8,0.04597]
[1772674658415,1.17778794,2124.5,2123.8,0.04597]
[1772674660145,1.17778794,2124.5,2123.6,4.709863]
[1772674660146,0.477015,2124.3,2123.6,1.17834188]
[1772674660346,0.477015,2124.3,2123.6,1.22431188]
[1772674660522,0.67813532,2124.2,2123.7,0.04597]
[1772674660721,0.67813532,2124.4,2123.7,0.04597]
[1772674660922,0.67813532,2124.4,2123.6,0.0011]
[1772674660923,3.67798501,2124.3,2123.6,0.0011]
[1772674661149,0.001,2124.5,2123.6,0.0011]
[1772674661150,0.477015,2124.1,2123.6,0.0011]
[1772674661939,0.67813532,2124.0,2123.6,0.0011]
[1772674662244,1.6540949,2123.9,2123.8,0.0011]
[1772674663843,1.6540949,2123.9,2123.4,0.0011]
[1772674663844,0.476465,2123.7,2123.4,0.0011]
[1772674664257,0.476465,2123.5,2123.1,0.0011]
[1772674665354,0.476465,2123.3,2123.1,0.0011]
[1772674666134,1.15020032,2123.2,2123.1,0.0011]
[1772674666363,1.65393297,2123.2,2123.1,0.0011]
[1772674667543,2.32766829,2123.2,2123.1,0.0011]
[1772674668538,1.85120329,2123.2,2123.1,0.0011]
[1772674669662,1.17746797,2123.2,2123.1,0.0011]
[1772674670192,2.32766829,2123.2,2123.0,0.0011]
[1772674673458,1.17744733,2123.3,2123.0,0.0011]
[1772674673770,0.475915,2123.2,2123.0,0.0011]
[1772674674069,1.17744733,2123.3,2122.8,0.0011]
[1772674674070,0.475915,2123.1,2122.8,0.0011]
[1772674674269,1.14965032,2123.1,2122.8,0.0033]
[1772674674654,1.17757889,2123.0,2122.8,0.0033]
[1772674675054,1.65349389,2123.0,2122.5,0.0011]
[1772674675370,1.14965032,2122.9,2122.5,0.0011]
[1772674677078,1.17768984,2122.8,2122.5,0.0011]
[1772674677374,0.67373532,2122.9,2122.5,0.0011]
[1772674677575,1.85137727,2122.9,2122.5,0.0011]
[1772674680960,0.475915,2122.8,2122.5,0.0011]
[1772674681270,0.475915,2122.8,2122.3,0.0011]
[1772674681449,1.14910032,2122.7,2122.3,0.0011]
[1772674681771,0.475365,2122.6,2122.3,0.0011]
[1772674682756,1.1778563,2122.5,2122.3,0.0011]
[1772674683160,1.65305484,2122.9,2122.3,0.0011]
[1772674683361,4.71082198,2122.8,2122.3,0.0011]
[1772674684579,5.18618698,2122.8,2122.3,0.0011]
[1772674685984,0.67373532,2122.7,2122.3,0.0011]
[1772674686478,1.17763703,2122.9,2122.3,2.27205331]
[1772674686679,0.62446532,2122.8,2122.5,0.0011]
[1772674687179,0.001,2123.1,2122.5,0.0011]
[1772674687356,0.001,2123.1,2122.5,1.0711]
[1772674687550,0.001,2123.1,2122.6,1.17780081]
[1772674688158,0.62546532,2123.1,2122.7,1.07]
[1772674688359,0.501,2123.1,2122.7,1.07]
[1772674688883,0.62446532,2123.0,2122.5,1.17891076]
[1772674689079,0.62446532,2123.0,2122.5,0.0011]
[1772674689575,1.17763436,2122.9,2122.5,0.0011]
[1772674690167,0.62446532,2122.8,2122.5,0.0011]
[1772674690477,0.62446532,2123.0,2122.5,0.0011]
[1772674690866,1.17738186,2123.4,2122.5,0.0011]
[1772674691177,4.70915468,2123.6,2122.5,0.0011]
[1772674691386,0.90117693,2123.5,2122.5,0.0011]
[1772674691588,0.5,2123.4,2122.5,0.0011]
[1772674692385,0.5,2123.4,2122.5,1.1789563]
[1772674692386,1.17741251,2123.3,2122.5,1.1789563]
[1772674693363,1.17741251,2123.3,2122.6,1.07]
[1772674693565,1.67741251,2123.3,2122.6,1.07]
[1772674694081,0.5,2123.2,2122.6,1.07]
[1772674694663,1.17752343,2123.1,2122.7,1.17774532]
[1772674694859,1.67751371,2123.2,2122.7,1.17774532]
[1772674695159,1.17745564,2123.3,2122.7,1.17774532]
[1772674695559,1.67734254,2123.5,2122.7,1.17774532]
[1772674695766,0.40179158,2123.4,2122.7,1.17774532]
[1772674695966,1.17734254,2123.5,2122.7,1.17774532]
[1772674696166,1.67711358,2123.9,2122.7,1.17774532]
[1772674696396,1.17706883,2124.0,2122.7,1.17774532]
[1772674696697,1.17706883,2124.0,2122.8,3.37847344]
[1772674696698,0.5,2124.0,2122.8,3.37847344]
[1772674697300,0.5,2124.0,2122.7,4.55621876]
[1772674697669,0.5,2124.0,2122.8,1.07]